bitfinex/quotes_SOLUSD_20250527
["timestamp","ask_amount","ask_price","bid_price","bid_amount"]
[1748354822080,91.04,177.38,177.37,26.52013419]
[1748354822398,0.56367389,177.41,177.37,26.52013419]
[1748354822399,9.88,177.41,177.37,26.52013419]
[1748354822562,9.88,177.41,177.4,26.52013419]
[1748354823992,10.44354063,177.45,177.4,26.52013419]
[1748354824289,9.88,177.45,177.44,26.52013419]
[1748354824483,10.44353902,177.45,177.44,26.52013419]
[1748354825075,9.88,177.45,177.44,26.52013419]
[1748354825478,0.5634468,177.48,177.44,26.52013419]
[1748354825662,0.5634468,177.48,177.47,26.52013419]
[1748354826668,0.5634468,177.48,177.43,36.08]
[1748354826866,0.5634468,177.48,177.47,26.52013419]
[1748354827068,0.56338028,177.5,177.47,53.04026838]
[1748354827262,0.56338028,177.5,177.49,26.52013419]
[1748354827462,1.97183098,177.5,177.41,26.0]
[1748354827772,1.97183098,177.5,177.49,26.52013419]
[1748354827986,0.56338028,177.5,177.49,26.52013419]
[1748354830083,9.88,177.51,177.49,26.52013419]
[1748354830391,9.88,177.51,177.5,26.52013419]
[1748354830782,10.44322162,177.55,177.5,26.52013419]
[1748354830983,10.44322162,177.55,177.54,26.52013419]
[1748354831497,11.85127568,177.55,177.53,26.52013419]
[1748354831868,11.85127568,177.55,177.46,26.0]
[1748354831869,11.85127568,177.55,177.52,26.52013419]
[1748354832065,11.85127568,177.55,177.46,62.06]
[1748354832066,0.14216157,177.54,177.51,26.52013419]
[1748354832693,0.14216157,177.54,177.53,26.52013419]
[1748354832882,11.85127568,177.55,177.53,26.52013419]
[1748354833079,11.85127568,177.55,177.54,26.52013419]
[1748354833267,10.44322162,177.55,177.54,26.52013419]
[1748354833886,29.09287048,177.55,177.54,26.52013419]
[1748354834696,10.44322162,177.55,177.54,26.52013419]
[1748354835285,10.44322162,177.55,177.49,26.0]
[1748354835286,11.85127568,177.55,177.49,26.0]
[1748354835501,11.85127568,177.55,177.54,26.52013419]
[1748354836080,10.44322162,177.55,177.54,26.52013419]
[1748354836780,9.88,177.55,177.54,26.52013419]
[1748354837197,10.44322162,177.55,177.54,26.52013419]
[1748354837568,9.88,177.55,177.54,26.52013419]
[1748354839170,0.56312133,177.59,177.54,26.52013419]
[1748354839371,0.56312133,177.59,177.58,26.52013419]
[1748354840514,1.96927924,177.73,177.62,26.0]
[1748354840711,0.56265121,177.73,177.72,26.52013419]
[1748354841598,0.56265121,177.73,177.66,26.0]
[1748354841781,18.64964886,177.72,177.6,26.52013419]
[1748354841982,28.50964886,177.72,177.71,26.52013419]
[1748354842378,28.50964886,177.72,177.63,26.0]
[1748354842379,28.50964886,177.72,177.7,26.52013419]
[1748354842586,0.14216157,177.71,177.68,26.52013419]
[1748354843297,0.5627462,177.7,177.69,26.52013419]
[1748354843899,0.5627462,177.7,177.63,26.0]
[1748354843900,20.61926056,177.7,177.63,26.0]
[1748354844106,20.61926056,177.7,177.68,26.52013419]
[1748354844405,20.76142213,177.7,177.69,26.52013419]
[1748354844902,20.76142213,177.7,177.61,62.02]
[1748354845097,20.76142213,177.7,177.69,26.52013419]
[1748354845683,20.61926056,177.7,177.69,26.52013419]
[1748354845903,0.5627462,177.7,177.64,26.0]
[1748354846204,0.5627462,177.7,177.69,26.52013419]
[1748354847401,0.56269042,177.72,177.69,26.52013419]
[1748354847610,0.56269042,177.72,177.71,26.52013419]
[1748354848598,0.5625879,177.75,177.71,26.52013419]
[1748354848780,19.21223676,177.75,177.74,26.52013419]
[1748354849202,0.56255625,177.76,177.74,26.52013419]
[1748354849497,19.21220511,177.76,177.75,26.52013419]
[1748354850504,20.61859574,177.76,177.75,26.52013419]
[1748354852202,20.61859574,177.76,177.65,4.1514]
[1748354852203,0.14216157,177.74,177.71,26.52013419]
[1748354852707,0.14216157,177.74,177.72,26.52013419]
[1748354854214,19.35446164,177.73,177.72,26.52013419]
[1748354854683,19.35446164,177.73,177.61,28.69989719]
[1748354854684,24.83621043,177.72,177.61,8.74956675]
[1748354854886,0.14216157,177.69,177.66,26.52013419]
[1748354855504,18.79181043,177.67,177.63,26.52013419]
[1748354855886,0.14216157,177.67,177.63,26.52013419]
[1748354856085,20.61992581,177.64,177.55,1.6647]
[1748354856281,18.79181043,177.62,177.58,26.52013419]
[1748354856501,18.79181043,177.62,177.59,26.52013419]
[1748354858301,0.56303136,177.61,177.59,26.52013419]
[1748354858603,1.97060976,177.61,177.59,26.52013419]
[1748354858808,1.97060976,177.61,177.53,35.98]
[1748354858809,20.76242019,177.61,177.6,6.98543005]
[1748354859622,19.21268022,177.61,177.6,6.98543005]
[1748354860817,18.64964886,177.6,177.56,26.0]
[1748354861023,18.64964886,177.6,177.59,26.52013419]
[1748354861229,20.62025862,177.61,177.58,26.52013419]
[1748354861401,18.79181043,177.6,177.57,26.52013419]
[1748354861718,20.62025862,177.61,177.59,26.52013419]
[1748354862418,23.89565143,177.61,177.6,26.52013419]
[1748354862919,22.34591146,177.61,177.6,26.52013419]
[1748354863619,3.13323124,177.61,177.6,26.52013419]
[1748354863924,18.64964886,177.62,177.6,26.52013419]
[1748354864217,9.84,177.63,177.61,26.52013419]
[1748354864417,28.48964886,177.63,177.62,26.52013419]
[1748354865394,9.84,177.63,177.62,26.52013419]
[1748354865591,3.13747866,177.66,177.62,26.52013419]
[1748354865794,21.78712752,177.66,177.65,26.52013419]
[1748354866019,18.64964886,177.65,177.6,28.05393419]
[1748354866221,18.64964886,177.65,177.64,26.52013419]
[1748354866404,0.56290458,177.65,177.64,26.52013419]
[1748354867217,3.71570179,177.65,177.64,26.52013419]
[1748354867720,3.86739692,177.66,177.64,26.52013419]
[1748354867936,9.84,177.68,177.65,26.52013419]
[1748354868240,9.84,177.68,177.61,5.630229]
[1748354868241,28.48964886,177.68,177.67,26.52013419]
[1748354868409,10.40965306,177.72,177.67,26.52013419]
[1748354868410,3.1636862,177.7,177.67,26.52013419]
[1748354868609,3.95295306,177.72,177.69,26.52013419]
[1748354868908,9.84,177.79,177.71,79.04026838]
[1748354869232,3.16395864,177.72,177.71,26.0]
[1748354870219,3.16395864,177.72,177.71,52.52013419]
[1748354871439,3.16395864,177.72,177.71,79.04026838]
[1748354871591,3.16395864,177.72,177.71,26.0]
[1748354871796,3.16395864,177.72,177.71,52.52013419]
[1748354873506,1.40629221,177.78,177.71,79.04026838]
[1748354873822,1.96878517,177.78,177.77,26.52013419]
[1748354874513,19.21214182,177.78,177.77,26.52013419]
[1748354874704,0.56249296,177.78,177.77,26.52013419]
[1748354875306,0.56246692,177.79,177.77,26.52013419]
[1748354875510,4.51798469,177.8,177.78,26.52013419]
[1748354875716,23.16763355,177.8,177.79,26.52013419]
[1748354877524,23.16763355,177.8,177.74,61.96]
[1748354877525,18.64964886,177.79,177.74,61.96]
[1748354877721,5.92405893,177.8,177.78,26.52013419]
[1748354877922,0.14216157,177.79,177.78,26.52013419]
[1748354878926,5.92405893,177.8,177.78,26.52013419]
[1748354879234,5.92405893,177.8,177.79,26.52013419]
[1748354879607,4.51798469,177.8,177.79,26.52013419]
[1748354881631,3.95554907,177.8,177.79,26.52013419]
[1748354882326,4.51797876,177.8,177.79,26.52013419]
[1748354883006,4.51797876,177.8,177.77,26.0]
[1748354883214,4.51797876,177.8,177.79,26.52013419]
[1748354885511,4.51797876,177.8,177.75,61.94]
[1748354885712,3.95554907,177.8,177.79,26.52013419]
[1748354886138,4.51797876,177.8,177.79,26.52013419]
[1748354886636,5.924053,177.8,177.79,26.52013419]
[1748354887830,0.14216157,177.78,177.77,26.52013419]
[1748354888039,0.14216157,177.78,177.74,26.52013419]
[1748354888416,18.64964886,177.77,177.74,26.52013419]
[1748354888820,0.14216157,177.76,177.65,7.13886434]
[1748354889022,0.56265121,177.73,177.72,26.52013419]
[1748354889731,18.64964886,177.72,177.68,26.0]
[1748354889933,18.64964886,177.72,177.71,26.52013419]
[1748354890339,1.40652104,177.75,177.71,26.52013419]
[1748354890340,0.56259574,177.75,177.71,26.52013419]
[1748354890558,18.64964886,177.77,177.74,26.52013419]
[1748354890852,18.64964886,177.77,177.76,26.52013419]
[1748354891150,19.21217347,177.77,177.76,26.52013419]
[1748354891661,19.21217347,177.77,177.75,26.52013419]
[1748354891872,0.14216157,177.76,177.75,26.52013419]
[1748354892332,0.14216157,177.76,177.74,26.52013419]
[1748354892867,0.14216157,177.76,177.68,26.0]
[1748354892868,18.64964886,177.75,177.68,26.0]
[1748354893044,26.66229576,177.76,177.61,5.6303136]
[1748354893045,18.79181043,177.72,177.61,5.6303136]
[1748354893243,9.82,177.71,177.68,26.52013419]
[1748354893448,28.61181043,177.71,177.7,26.52013419]
[1748354894447,29.17452496,177.71,177.7,26.52013419]
[1748354895242,29.03236339,177.71,177.7,26.52013419]
[1748354895441,28.46964886,177.71,177.7,26.52013419]
[1748354895639,29.03236339,177.71,177.7,26.52013419]
[1748354896454,19.21241922,177.7,177.65,35.92]
[1748354896759,10.38272232,177.71,177.69,26.52013419]
[1748354896966,10.38272232,177.71,177.7,26.52013419]
[1748354897373,9.82,177.71,177.7,26.52013419]
[1748354897542,29.03236339,177.71,177.7,26.52013419]
[1748354897742,18.64964886,177.7,177.65,35.92]
[1748354898054,10.38271453,177.71,177.69,26.52013419]
[1748354898249,0.14216157,177.7,177.64,35.92]
[1748354898456,0.70490777,177.7,177.69,26.52013419]
[1748354898770,19.35455663,177.7,177.69,26.52013419]
[1748354899675,19.21239506,177.7,177.69,26.52013419]
[1748354902358,18.64964886,177.7,177.69,26.52013419]
[1748354902681,19.21239506,177.7,177.69,26.52013419]
[1748354903069,10.38271742,177.71,177.69,26.52013419]
[1748354903267,29.03236628,177.71,177.7,26.52013419]
[1748354903458,28.46964886,177.71,177.7,26.52013419]
[1748354903875,0.56268212,177.73,177.7,26.52013419]
[1748354904181,0.56268212,177.73,177.65,5.62897198]
[1748354904182,18.64964886,177.73,177.72,26.52013419]
[1748354904376,19.21230346,177.73,177.69,61.92]
[1748354904578,19.21230346,177.73,177.72,26.52013419]
[1748354905079,19.35446503,177.73,177.72,26.52013419]
[1748354905288,19.35446503,177.73,177.69,61.92]
[1748354905459,19.35446503,177.73,177.72,26.52013419]
[1748354906365,19.21230346,177.73,177.72,26.52013419]
[1748354906562,18.64964886,177.73,177.72,26.52013419]
[1748354907589,0.56262589,177.74,177.72,26.52013419]
[1748354907885,0.56262589,177.74,177.73,26.52013419]
[1748354907886,18.64964886,177.74,177.73,26.52013419]
[1748354908091,28.44964886,177.75,177.73,26.52013419]
[1748354908392,29.01225505,177.75,177.74,26.52013419]
[1748354909160,18.64964886,177.74,177.67,1.5287]
[1748354909388,0.14216157,177.73,177.69,26.0]
[1748354909689,0.14216157,177.73,177.71,26.52013419]
[1748354910586,0.14216157,177.73,177.67,26.0]
[1748354910765,0.14216157,177.73,177.71,26.52013419]
[1748354911091,0.14216157,177.7,177.69,26.52013419]
[1748354911380,0.14216157,177.7,177.65,26.52013419]
[1748354911563,0.14216157,177.67,177.66,26.52013419]
[1748354913182,19.35465165,177.67,177.66,26.52013419]
[1748354913384,19.35465165,177.67,177.62,1.5568]
[1748354915090,9.8,177.69,177.62,7.18676325]
[1748354915288,29.01236702,177.71,177.68,26.52013419]
[1748354915493,0.56262448,177.74,177.7,26.52013419]
[1748354915787,0.5625936,177.75,177.73,26.52013419]
[1748354915993,19.21224246,177.75,177.74,26.52013419]
[1748354916300,18.64964886,177.75,177.74,26.52013419]
[1748354916590,16.93297459,177.8,177.74,26.52013419]
[1748354916889,36.14505314,177.8,177.79,26.52013419]
[1748354917096,35.58262345,177.8,177.79,26.52013419]
[1748354917390,13.75554907,177.8,177.79,26.52013419]
[1748354920467,14.31797876,177.8,177.79,26.52013419]
[1748354920868,33.10978919,177.8,177.72,26.52013419]
[1748354921068,33.10978919,177.8,177.77,26.52013419]
[1748354921069,0.14216157,177.78,177.77,26.52013419]
[1748354921285,0.14216157,177.78,177.7,1.6139]
[1748354921286,0.14216157,177.78,177.75,26.52013419]
[1748354921699,0.14216157,177.78,177.76,26.52013419]
[1748354922197,19.21217347,177.77,177.76,26.52013419]
[1748354923099,19.35433504,177.77,177.76,26.52013419]
[1748354923776,19.21217347,177.77,177.76,26.52013419]
[1748354924189,19.35433504,177.77,177.76,26.52013419]
[1748354925315,19.21217347,177.77,177.76,26.52013419]
[1748354925803,18.64964886,177.79,177.76,26.52013419]
[1748354926001,18.64964886,177.79,177.78,26.52013419]
[1748354926207,19.21211019,177.79,177.78,26.52013419]
[1748354928778,19.35427176,177.79,177.78,26.52013419]
[1748354929213,19.21211019,177.79,177.78,26.52013419]
[1748354930305,14.31798553,177.8,177.78,26.52013419]
[1748354930503,32.96763439,177.8,177.79,26.52013419]
[1748354931401,18.64964886,177.79,177.77,26.0]
[1748354931602,18.64964886,177.79,177.78,26.52013419]
[1748354931803,32.96763439,177.8,177.78,26.52013419]
[1748354931984,32.96763439,177.8,177.75,26.0]
[1748354931985,32.96763439,177.8,177.79,26.52013419]
[1748354933005,33.10979596,177.8,177.79,26.52013419]
[1748354934212,32.96763439,177.8,177.79,26.52013419]
[1748354940698,3.95554907,177.8,177.79,26.52013419]
[1748354940905,3.17363515,177.81,177.79,32.14474749]
[1748354941097,3.17363515,177.81,177.8,62.40013419]
[1748354941499,3.16160626,177.83,177.82,26.0]
[1748354941697,3.16160626,177.83,177.82,79.04026838]
[1748354942016,28.99182876,177.88,177.87,26.52013419]
[1748354942822,9.78,177.88,177.87,26.52013419]
[1748354943002,18.64964886,177.9,177.87,26.52013419]
[1748354943324,19.2117624,177.9,177.89,26.52013419]
[1748354943902,19.2117624,177.9,177.84,1.5732]
[1748354944228,0.14216157,177.89,177.86,26.52013419]
[1748354944413,20.61704626,177.9,177.88,26.52013419]
[1748354944605,19.2117624,177.9,177.89,26.52013419]
[1748354945208,19.2117624,177.9,177.84,52.52013419]
[1748354946530,19.2117624,177.9,177.84,26.0]
[1748354946531,20.61704626,177.9,177.84,26.0]
[1748354946733,0.14216157,177.87,177.85,26.52013419]
[1748354946943,0.56217674,177.88,177.86,26.52013419]
[1748354947115,0.70433831,177.88,177.87,26.52013419]
[1748354947512,0.56217674,177.88,177.87,26.52013419]
[1748354947712,19.2118256,177.88,177.87,26.52013419]
[1748354948223,19.2118256,177.88,177.81,67.48395279]
[1748354948399,19.2118256,177.88,177.87,26.52013419]
[1748354949947,19.2118256,177.88,177.87,16.4682678]
[1748354950847,18.64964886,177.87,177.81,26.0]
[1748354951140,18.79181043,177.87,177.86,16.4682678]
[1748354951436,0.56217674,177.88,177.86,16.4682678]
[1748354951644,0.56217674,177.88,177.87,16.4682678]
[1748354952020,0.70433831,177.88,177.87,16.4682678]
[1748354952742,0.56217674,177.88,177.87,16.4682678]
[1748354952962,18.64964886,177.88,177.87,16.4682678]
[1748354955438,0.56217674,177.88,177.87,16.4682678]
[1748354955641,0.56205035,177.92,177.87,16.4682678]
[1748354955825,8.49065158,177.94,177.91,16.4682678]
[1748354956024,27.14030044,177.94,177.93,16.4682678]
[1748354957216,18.64964886,177.93,177.86,26.0]
[1748354957411,0.14216157,177.92,177.86,26.0]
[1748354957833,0.14216157,177.92,177.89,16.4682678]
[1748354958146,0.14216157,177.92,177.86,26.0]
[1748354958338,0.14216157,177.92,177.87,16.4682678]
[1748354958651,0.14216157,177.92,177.88,16.4682678]
[1748354959226,18.64964886,177.9,177.89,16.4682678]
[1748354959958,18.64964886,177.9,177.89,26.34771505]
[1748354961055,0.14216157,177.89,177.88,26.34771505]
[1748354961261,19.35395557,177.89,177.88,26.34771505]
[1748354962069,0.14216157,177.93,177.88,26.34771505]
[1748354962276,19.21166763,177.93,177.92,26.34771505]
[1748354962577,8.49062953,177.94,177.92,26.34771505]
[1748354962733,8.49062953,177.94,177.93,26.34771505]
[1748354962928,27.14027839,177.94,177.93,26.34771505]
[1748354963536,7.92863363,177.94,177.93,26.34771505]
[1748354963738,7.92863363,177.94,177.93,88.18771505]
[1748354963935,7.92863363,177.94,177.93,93.80790276]
[1748354964136,7.92863363,177.94,177.93,88.18771505]
[1748354966347,7.92863363,177.94,177.93,93.80790276]
[1748354966547,7.92863363,177.94,177.93,88.18771505]
[1748354969974,7.92863363,177.94,177.93,88.16771505]
[1748354972085,8.49062081,177.94,177.93,26.34771505]
[1748354972491,7.92863363,177.94,177.93,26.34771505]
[1748354972691,7.92863363,177.94,177.91,35.82]
[1748354972853,7.92863363,177.94,177.93,26.34771505]
[1748354974351,8.49062081,177.94,177.91,35.82]
[1748354974660,7.92863363,177.94,177.93,26.34771505]
[1748354975578,7.92863363,177.94,177.93,52.34771505]
[1748354976778,7.92863363,177.94,177.93,57.96790276]
[1748354977280,7.92863363,177.94,177.93,31.96790276]
[1748354977856,7.92798379,177.99,177.96,26.0]
[1748354978056,7.92798379,177.99,177.98,26.34771505]
[1748354978782,7.92798379,177.99,177.98,52.34771505]
[1748354979968,7.92798379,177.99,177.98,42.44248854]
[1748354980790,27.13946196,177.99,177.98,16.44248854]
[1748354981276,18.64964886,177.98,177.95,35.8]
[1748354981462,18.64964886,177.98,177.97,16.44248854]
[1748354981774,8.4898131,177.99,177.97,16.44248854]
[1748354982187,8.4898131,177.99,177.98,16.44248854]
[1748354982993,7.92798379,177.99,177.98,16.44248854]
[1748354983286,8.4898131,177.99,177.98,16.44248854]
[1748354984162,8.4898131,177.99,177.95,35.8]
[1748354984485,8.4898131,177.99,177.98,16.44248854]
[1748354985275,7.92798379,177.99,177.98,16.44248854]
[1748354986165,7.92798379,177.99,177.98,32.88497708]
[1748354986373,19.21129536,178.05,178.01,26.0]
[1748354986571,19.21129536,178.05,178.04,16.44248854]
[1748354987274,10.32155495,178.08,178.04,16.44248854]
[1748354987566,7.47648153,178.11,178.07,16.44248854]
[1748354987766,7.47648153,178.11,178.1,16.44248854]
[1748354987767,8.03793231,178.11,178.1,16.44248854]
[1748354988005,26.82974274,178.11,178.1,16.44248854]
[1748354988391,25.28389964,178.11,178.1,16.44248854]
[1748354988565,6.63425078,178.11,178.1,16.44248854]
[1748354989595,6.63425078,178.11,178.05,35.8]
[1748354989899,6.63425078,178.11,178.1,16.44248854]
[1748354990786,8.18003932,178.11,178.1,16.44248854]
[1748354993691,0.56145078,178.11,178.1,16.44248854]
[1748354993918,19.21106316,178.13,178.1,52.22248854]
[1748354994069,19.21106316,178.13,178.12,16.44248854]
[1748354996992,19.35322473,178.13,178.11,16.44248854]
[1748354997172,0.14216157,178.12,178.11,16.44248854]
[1748354998803,0.14216157,178.12,178.02,12.59908706]
[1748354998966,0.14216157,178.09,178.07,16.44248854]
[1748354999370,0.14216157,178.09,178.08,16.44248854]
[1748355000072,0.14216157,178.09,178.07,16.44248854]
[1748355000905,18.64964886,178.05,177.96,1.6646]
[1748355001080,0.14216157,178.04,178.01,16.44248854]
[1748355001280,18.64964886,178.05,178.03,16.44248854]
[1748355002295,18.64964886,178.05,178.0,26.0]
[1748355002785,18.64964886,178.05,178.04,16.44248854]
[1748355002997,0.56163998,178.05,178.04,16.44248854]
[1748355005300,0.56161606,178.06,178.04,16.44248854]
[1748355005605,18.64964886,178.07,178.05,16.44248854]
[1748355005787,0.56153895,178.09,178.03,26.0]
[1748355005788,0.56153895,178.09,178.06,16.44248854]
[1748355005977,0.56153895,178.09,178.08,16.44248854]
[1748355008433,18.64964886,178.11,178.1,26.0]
[1748355008598,8.04348551,178.16,178.1,26.0]
[1748355008599,19.21097358,178.15,178.1,16.44248854]
[1748355008803,19.21097358,178.15,178.12,16.44248854]
[1748355009825,19.21097358,178.15,178.14,16.44248854]
[1748355010030,18.64964886,178.15,178.14,16.44248854]
[1748355010197,9.74,178.16,178.14,42.44248854]
[1748355010395,8.45992344,178.2,178.16,26.0]
[1748355010622,8.45992344,178.2,178.14,35.76]
[1748355010623,8.45992344,178.2,178.19,16.44248854]
[1748355010929,7.89874765,178.2,178.19,32.88497708]
[1748355011095,0.56091541,178.28,178.22,26.0]
[1748355011298,0.56091541,178.28,178.25,16.44248854]
[1748355011497,0.56091541,178.28,178.23,26.0]
[1748355012001,0.56091541,178.28,178.22,26.0]
[1748355012189,0.14216157,178.27,178.25,26.23624946]
[1748355012394,0.56091541,178.28,178.25,26.23624946]
[1748355012594,0.56091541,178.28,178.24,26.23624946]
[1748355012819,0.56091541,178.28,178.25,26.23624946]
[1748355013119,11.14226647,178.29,178.25,26.23624946]
[1748355013120,0.56097834,178.26,178.25,26.23624946]
[1748355013512,0.56092192,178.28,178.25,26.23624946]
[1748355013716,0.56092192,178.28,178.27,26.23624946]
[1748355013917,18.64964886,178.27,178.25,26.23624946]
[1748355014895,18.64964886,178.27,178.24,26.23624946]
[1748355015097,0.56100981,178.25,178.14,14.03362854]
[1748355015293,0.56100981,178.25,178.13,10.0]
[1748355015294,44.88589832,178.22,178.13,2.75901893]
[1748355015599,18.64964886,178.19,178.13,26.23624946]
[1748355015933,45.02805989,178.18,178.12,26.23624946]
[1748355016099,45.02805989,178.18,178.11,26.0]
[1748355016300,0.14216157,178.18,178.11,26.0]
[1748355016626,18.79181043,178.18,178.11,26.0]
[1748355016802,18.79181043,178.18,178.12,26.23624946]
[1748355016803,0.14216157,178.16,178.12,26.23624946]
[1748355017135,0.56141926,178.12,178.08,26.23624946]
[1748355017299,18.79181043,178.11,178.08,26.23624946]
[1748355017499,18.79181043,178.11,178.05,35.74]
[1748355017717,18.79181043,178.11,178.03,6.13596029]
[1748355017718,18.79181043,178.11,178.0,4.1514]
[1748355018028,18.79181043,178.11,177.99,7.87567441]
[1748355018029,18.79181043,178.09,178.01,35.74]
[1748355018217,18.79181043,178.09,178.06,26.23624946]
[1748355018421,0.56135623,178.14,178.11,26.0]
[1748355018630,0.56135623,178.14,178.12,26.23624946]
[1748355018805,0.14216157,178.12,178.09,52.23624946]
[1748355019145,1.40327754,178.16,178.07,35.74]
[1748355019146,18.79181043,178.16,178.11,26.23624946]
[1748355019303,18.79181043,178.16,178.13,26.23624946]
[1748355019304,18.64964886,178.16,178.13,26.23624946]
[1748355019510,18.64964886,178.16,178.15,26.23624946]
[1748355019809,9.72,178.17,178.15,26.23624946]
[1748355020014,9.72,178.17,178.16,26.23624946]
[1748355020327,9.72,178.17,178.15,26.23624946]
[1748355020513,10.28127067,178.17,178.14,26.23624946]
[1748355020712,18.79181043,178.16,178.14,26.23624946]
[1748355021036,9.72,178.17,178.15,52.23624946]
[1748355021335,9.72,178.17,178.16,26.23624946]
[1748355021521,0.56117421,178.2,178.16,26.23624946]
[1748355021727,25.28864886,178.21,178.18,26.23624946]
[1748355022416,10.28110459,178.22,178.19,26.23624946]
[1748355022742,10.28110459,178.22,178.21,26.23624946]
[1748355022743,9.72,178.22,178.21,26.23624946]
[1748355023073,9.72,178.22,178.17,35.74]
[1748355023074,9.72,178.22,178.2,26.0]
[1748355023210,18.64964886,178.21,178.18,26.0]
[1748355023405,18.64964886,178.19,178.17,26.23624946]
[1748355023606,18.64964886,178.19,178.16,26.23624946]
[1748355023805,18.64964886,178.19,178.17,26.23624946]
[1748355024049,18.79181043,178.21,178.18,52.23624946]
[1748355024231,10.28113257,178.22,178.2,26.23624946]
[1748355024610,10.28113257,178.22,178.19,26.23624946]
[1748355025015,81.30107814,178.23,178.2,26.23624946]
[1748355025228,0.14216157,178.23,178.21,26.23624946]
[1748355025415,0.7032344,178.23,178.19,35.72]
[1748355025618,0.7032344,178.23,178.2,26.23624946]
[1748355025825,0.70320812,178.24,178.2,26.23624946]
[1748355026027,0.56104655,178.24,178.22,26.23624946]
[1748355026227,28.93066093,178.25,178.22,26.23624946]
[1748355026417,10.28088395,178.29,178.24,26.23624946]
[1748355026626,10.28088395,178.29,178.23,61.72]
[1748355026627,10.28088395,178.29,178.26,26.23624946]
[1748355027027,10.28088395,178.29,178.27,26.23624946]
[1748355027617,18.64964886,178.28,178.26,26.0]
[1748355027846,18.64964886,178.28,178.23,26.0]
[1748355027847,0.14216157,178.27,178.23,26.0]
[1748355028408,26.37841103,178.27,178.22,26.23624946]
[1748355028624,18.79181043,178.25,178.21,52.23624946]
[1748355029237,18.79181043,178.25,178.15,7.22979547]
[1748355029238,0.14216157,178.23,178.19,26.23624946]
[1748355029446,0.14216157,178.23,178.14,15.33348146]
[1748355029447,18.79181043,178.21,178.17,26.23624946]
[1748355029628,18.79181043,178.21,178.18,26.23624946]
[1748355030417,18.79181043,178.21,178.11,9.72]
[1748355030620,18.79181043,178.19,178.15,26.23624946]
[1748355030826,18.64964886,178.21,178.17,26.23624946]
[1748355031349,18.64964886,178.21,178.18,26.23624946]
[1748355031647,0.56116722,178.2,178.18,26.23624946]
[1748355032143,0.56116722,178.2,178.14,26.23624946]
[1748355032144,18.64964886,178.19,178.14,26.23624946]
[1748355032329,18.64964886,178.19,178.15,26.0]
[1748355032330,0.14216157,178.18,178.15,26.0]
[1748355032521,0.56116722,178.2,178.17,26.23624946]
[1748355032727,19.35294547,178.22,178.19,26.23624946]
[1748355033449,19.35294547,178.22,178.18,26.23624946]
[1748355035645,19.35294547,178.22,178.13,26.0]
[1748355035852,19.35294547,178.22,178.17,52.23624946]
[1748355036453,19.35294547,178.22,178.19,26.23624946]
[1748355036947,19.35294547,178.22,178.18,61.95624946]
[1748355037128,19.35294547,178.22,178.18,35.72]
[1748355037331,19.35294547,178.22,178.18,61.95624946]
[1748355037939,19.35294547,178.22,178.19,26.23624946]
[1748355038256,19.35294547,178.22,178.18,61.95624946]
[1748355039346,19.35294547,178.22,178.19,26.23624946]
[1748355040577,19.35294547,178.22,178.2,3.22866958]
[1748355040858,45.02805989,178.21,178.2,3.22866958]
[1748355042185,51.13391043,178.2,178.19,4.03584342]
[1748355042387,51.13391043,178.2,178.12,8.07168684]
[1748355042388,26.37841103,178.13,178.12,8.07168684]
[1748355042564,18.79181043,178.13,178.12,8.07168684]
[1748355042763,45.02805989,178.13,178.12,8.07168684]
[1748355043760,18.79181043,178.13,178.12,8.07168684]
[1748355044181,45.58944764,178.13,178.12,8.07168684]
[1748355044786,19.35319818,178.13,178.12,8.07168684]
[1748355045087,45.58944764,178.13,178.12,8.07168684]
[1748355046266,19.35319818,178.13,178.12,8.07168684]
[1748355049091,0.70354932,178.13,178.12,8.07168684]
[1748355049978,0.56138775,178.13,178.12,8.07168684]
[1748355050591,0.14216157,178.14,178.12,8.07168684]
[1748355050592,0.56136489,178.14,178.12,8.07168684]
[1748355050907,0.56136489,178.14,178.12,34.3079363]
[1748355051195,0.56136489,178.14,178.12,8.07168684]
[1748355051377,18.79181043,178.13,178.12,8.07168684]
[1748355051694,0.14216157,178.13,178.12,8.07168684]
[1748355052900,10.28133022,178.15,178.12,34.3079363]
[1748355053130,9.72,178.15,178.13,26.23624946]
[1748355053473,44.88589832,178.18,178.13,26.23624946]
[1748355053474,0.70342739,178.17,178.14,26.23624946]
[1748355053775,0.70342739,178.17,178.15,26.23624946]
[1748355053776,0.56126582,178.17,178.15,26.23624946]
[1748355053980,0.70342739,178.17,178.15,26.23624946]
[1748355054196,0.56126582,178.17,178.15,26.23624946]
[1748355054494,0.70342739,178.17,178.15,26.23624946]
[1748355054800,10.28120804,178.19,178.16,26.23624946]
[1748355056191,81.28117062,178.2,178.18,26.23624946]
[1748355056582,81.28117062,178.2,178.16,26.23624946]
[1748355056783,0.56123021,178.18,178.16,26.23624946]
[1748355057899,0.56123021,178.18,178.12,43.79168684]
[1748355058199,0.56123021,178.18,178.14,26.23624946]